[Event "Serbian League Women 2024"]
[Site "Bajina Basta"]
[Date "2024.10.02"]
[Round "6.6"]
[White "Zimina, Olga"]
[Black "Lach, Aleksandra"]
[Result "1-0"]
[ECO "A96"]
[WhiteElo "2302"]
[BlackElo "2278"]
[Annotator "TA"]
[PlyCount "79"]
[EventDate "2024.09.26"]
[EventType "team-tourn"]
[EventCountry "SRB"]
[SourceTitle "playchess.com"]
[Source "ChessBase"]
[SourceQuality "1"]
[TimeControl "40/5400+30:1800+30"]

{[%evp 21,79,0,14,-4,-5,-33,-2,-7,16,13,12,0,20,9,15,27,41,28,24,20,60,66,63,67,69,61,76,91,92,0,106,85,106,83,109,111,139,97,104,121,111,51,70,60,214,191,181,199,522,537,625,620,4878,591,5840,5808,29974,29975,29974,29973]} 1. d4 {[%emt 0:00:04]} e6 {[%emt 0:00:31]} 2. g3 {[%emt 0:00:11]} f5 {[%emt 0:00:29]} 3. Bg2 {[%emt 0:00:05]} Nf6 {[%emt 0:00:06]} 4. c4 {[%emt 0:00:10]} Be7 {[%emt 0:00:34]} 5. Nf3 {[%emt 0:00:07]} d6 {[%emt 0:00:37]} 6. O-O {[%emt 0:00:07]} O-O {[%emt 0:00:09]} 7. Nc3 {[%emt 0:00:04]} a5 {[%emt 0:00:22]} 8. Qc2 {[%emt 0:00:12]} Nc6 {[%emt 0:00:30]} 9. a3 {[%emt 0:13:03]} e5 {[%emt 0:00:14]} 10. dxe5 {[%emt 0:00:33]} dxe5 {[%emt 0:02:29]} 11. Rd1 {[%emt 0:00:34]} Qe8 {[%emt 0:12:33]} 12. Nd5 {[%emt 0:04:27]} Bd8 {[%emt 0:00:40]} 13. Be3 {[%emt 0:11:24]} e4 {[%emt 0:11:52]} 14. Nd4 {[%emt 0:01:29] The position is equal.} Nxd4 {[%emt 0:10:31]} 15. Bxd4 {[%emt 0:01:55]} Qf7 {[%emt 0:00:51]} 16. Rac1 {[%emt 0:06:11]} c6 {[%emt 0:06:59]} 17. Nb6 {[%emt 0:01:31]} Bxb6 {[%emt 0:04:31]} 18. Bxb6 {[%emt 0:00:02]} a4 {[%emt 0:00:14][%cal Of5f4] Black is weak on the dark squares} 19. Qc3 {[%emt 0:13:25]} Be6 {[%emt 0:05:17]} 20. Bd4 {[%emt 0:03:52]} Qh5 {[%emt 0:10:41]} 21. Bxf6 {[%emt 0:08:24]} Rxf6 {[%emt 0:00:22]} 22. e3 {[%emt 0:00:50]} Rh6 {[%emt 0:05:52]} 23. h4 {[%emt 0:00:48]} Rf6 {[%emt 0:12:59]} 24. Rd6 {[%emt 0:02:05]} h6 {[%emt 0:01:04]} 25. Rcd1 {[%emt 0:02:24]} (25. Qb4 $16) 25... Kh7 {[%emt 0:00:33]} (25... Bd5 $1 $11 {remains equal.} 26. R1xd5 (26. Rxf6 Qxd1+ 27. Kh2 gxf6 $11) 26... cxd5 27. Rxf6 gxf6) 26. R1d2 {[%emt 0:05:15]} Qf7 {[%emt 0:01:12]} 27. Bf1 {[%emt 0:00:10][%cal Bg2f1,Bf1e2,Be2g4,Bg4e6][%mdl 32]} Re8 {[%emt 0:04:30]} 28. Be2 {[%emt 0:04:39]} Qg6 {[%emt 0:03:48]} 29. Kh2 {[%emt 0:04:44]} Rff8 {[%emt 0:00:22]} 30. Qb4 {[%emt 0:01:35][%csl LRa4,LRb7]} Qf7 {[%emt 0:01:36]} 31. Qxa4 {[%emt 0:00:25] White is more active.} (31. Kg1 $16) 31... g5 $14 {[%emt 0:00:18]} 32. Qd1 {[%emt 0:04:33]} (32. hxg5 {simplifies} hxg5 33. Qc2 Kg8 34. Kg1) 32... f4 $2 {[%emt 0:00:32] This move loses the game for Black.} (32... Qf6 $14) 33. Bg4 {[%emt 0:06:34]} fxg3+ {[%emt 0:01:00]} 34. fxg3 {[%emt 0:00:05] And now Bxe6 would win.} gxh4 $2 {[%emt 0:00:44] [#]} (34... Kg8 35. a4 c5 36. hxg5 Qg6 37. Bxe6+ Rxe6 38. Rxe6 Qxe6) 35. Bxe6 $1 $18 {[%emt 0:00:32]} (35. gxh4 Qf6 36. Rxe6 Rxe6 37. Bxe6 Qxe6 $16) 35... hxg3+ {[%emt 0:00:12]} 36. Kg2 {[%emt 0:00:06]} Qg6 {[%emt 0:01:12]} 37. Qg4 {[%emt 0:00:57]} (37. Bd7 $142 Qf7 38. Bxe8 Qf3+ 39. Qxf3 exf3+ 40. Kxg3 Rxe8 41. Kxf3 (41. Rd7+ Kg6 $18) (41. Kf2 Kg7 $18)) 37... Rxe6 {[%emt 0:01:15]} 38. Qxe6 {[%emt 0:00:09]} Qh5 {[%emt 0:00:06]} 39. Qxe4+ {[%emt 0:02:40]} Kh8 {[%emt 0:00:01]} 40. Kg1 {[%emt 0:00:34] Weighted Error Value: White=0.33/Black=0.64.  Mistake:       	White=2     	Black=3      Inaccurate:     	White=2     	Black=5      OK:         	White=9     	Black=5      Best:        	---       	Black=1      Strong:       	White=1     	---} (40. Kxg3 $2 {is the wrong capture.} Rg8+ 41. Kf2 Qh2+ 42. Kf3 Qh1+ (42... Rg3+ 43. Kf4 $16) 43. Kf4 Qh4+ 44. Ke5 (44. Kf3 $2 Rg3+ 45. Ke2 Qxe4 $19) 44... Re8+ 45. Kd4 Qxe4+ $19 (45... Rxe4+ $2 46. Kc5 $19)) 1-0

[Event "Serbian League Women 2024"]
[Site "Bajina Basta"]
[Date "2024.10.02"]
[Round "6.7"]
[White "Bojicic, Andjela"]
[Black "Vujovic, Vera"]
[Result "1-0"]
[ECO "D13"]
[WhiteElo "2071"]
[BlackElo "2175"]
[Annotator "TA"]
[PlyCount "79"]
[EventDate "2024.09.26"]
[EventType "team-tourn"]
[EventCountry "SRB"]
[SourceTitle "playchess.com"]
[Source "ChessBase"]
[SourceQuality "1"]
[TimeControl "40/5400+30:1800+30"]

{[%evp 18,79,21,29,26,8,17,0,16,0,0,0,7,0,32,29,102,69,65,71,142,82,140,112,373,373,603,618,600,597,628,754,745,750,742,769,760,761,752,728,745,778,775,841,851,825,945,937,1095,1040,1129,1122,1232,939,885,886,874,838,1073,916,844,702,5010,972]} 1. d4 {[%emt 0:00:03]} d5 {[%emt 0:00:00]} 2. c4 {[%emt 0:00:07]} c6 {[%emt 0:00:04]} 3. cxd5 {[%emt 0:00:05]} cxd5 {[%emt 0:00:04]} 4. Nc3 {[%emt 0:00:13]} Nf6 {[%emt 0:00:07]} 5. Bf4 {[%emt 0:00:22]} Nc6 {[%emt 0:26:37]} 6. e3 {[%emt 0:04:28]} e6 {[%emt 0:02:37]} 7. Bd3 {[%emt 0:03:31]} Bd6 {[%emt 0:03:47]} 8. Nf3 {[%emt 0:02:35]} Bxf4 {[%emt 0:01:12]} 9. exf4 {[%emt 0:00:05]} O-O {[%emt 0:11:13]} 10. O-O {[%emt 0:00:51]} g6 {[%emt 0:06:35]} 11. a3 {[%emt 0:05:12]} Bd7 {[%emt 0:05:44]} 12. b4 {[%emt 0:09:57]} Rc8 {[%emt 0:01:04][%cal Oc6b4] Die Stellung ist ausgeglichen.} 13. Rc1 {[%emt 0:00:37]} Ne8 {[%emt 0:09:49]} 14. h4 {[%emt 0:11:19][%cal Bh2h4,Bh4h5][%mdl 32]} Nd6 {[%emt 0:04:17] [#]} 15. h5 $1 {[%emt 0:01:30]} Be8 {[%emt 0:05:57]} (15... Qf6 16. Ne2) 16. g3 {[%emt 0:04:32]} a6 {[%emt 0:08:10]} (16... f6 $11) 17. Kg2 {[%emt 0:07:46]} (17. hxg6 {vereinfacht} fxg6 18. b5 axb5 19. Nxb5 Nxb5 20. Bxb5 Qe7 21. a4) 17... Qf6 {[%emt 0:07:30]} 18. hxg6 {[%emt 0:03:41]} hxg6 {[%emt 0:01:12]} ({Vorzuziehen ist} 18... fxg6 19. Ne2 h6) 19. Ne5 {[%emt 0:07:37]} (19. Rh1 $142 $1) 19... Nxd4 {[%emt 0:02:32]} (19... Qg7 $142) 20. Rh1 $1 $16 {[%emt 0:03:01]} N4f5 $2 {[%emt 0:01:17][%mdl 8192] [#] Verliert die Partie.} (20... Qe7 $16) 21. Bxf5 $1 $18 {[%emt 0:05:33]} Qxf5 $2 {[%emt 0:00:39]} (21... exf5 22. Qd4 (22. Nxd5 Qe6 $18) (22. Qxd5 Kg7 $11) 22... Nb5 23. Nxb5 (23. Qxd5 $2 Nxc3 24. Qxb7 Bc6+ 25. Nxc6 Rxc6 $19) (23. Nxd5 Qe6 $16) 23... Rxc1 24. Rxc1 axb5) 22. Ng4 {[%emt 0:00:17][%cal Be5g4,Bg4h6,Bh6f5,Bf5e3][%mdl 32] Weiß steht klar auf Gewinn.} Kg7 {[%emt 0:00:31] [#]} 23. Qd4+ $1 {[%emt 0:00:30]} e5 {[%emt 0:00:31]} 24. fxe5 {[%emt 0:02:10][%cal Og4f6] Nf6! wäre nun fies.} (24. Qxd5 $2 Bc6 $19 (24... exf4 25. Qd4+ f6 26. f3 $17) (24... exf4 25. Qd4+ f6 26. f3 $15)) 24... Rc4 {[%emt 0:00:30]} 25. Qe3 {[%emt 0:05:22]} (25. exd6+ $2 {ist das falsche Schlagen.} Rxd4 26. Nh6 Qf6 $19) (25. Qxd5 $2 {zu gefräßig.} Bc6 26. Nf6 Qxe5 $19 (26... Bxd5+ 27. Ncxd5 g5 28. Rxc4 $11) (26... Bxd5+ 27. Ncxd5 Rh8 28. Rxh8 $11)) 25... g5 {[%emt 0:00:15]} 26. Nh6 {[%emt 0:00:11] Ein dynamisches Springerpaar.} Qe6 {[%emt 0:00:39]} 27. exd6 {[%emt 0:02:24]} Qxe3 {[%emt 0:00:24]} 28. Nf5+ {[%emt 0:05:02]} Kg6 {[%emt 0:00:13]} 29. Nxe3 {[%emt 0:00:03]} Rc6 {[%emt 0:00:08]} 30. Ncxd5 {[%emt 0:01:51] Und Ne7+ würde nun gewinnen.} Rxc1 {[%emt 0:01:18]} 31. Rxc1 {[%emt 0:00:37]} Bc6 {[%emt 0:00:31]} 32. f3 {[%emt 0:01:24]} Ba4 {[%emt 0:00:31]} 33. Nb6 {[%emt 0:01:32]} Bc6 {[%emt 0:00:25]} 34. Rd1 {[%emt 0:02:35]} Kf6 {[%emt 0:00:23]} 35. Ned5+ {[%emt 0:00:40]} Ke6 {[%emt 0:00:20]} 36. Nc7+ {[%emt 0:00:24]} Kf6 {[%emt 0:00:07]} 37. d7 {[%emt 0:01:08]} Rd8 {[%emt 0:00:52]} 38. Kf2 {[%emt 0:04:18]} Ke7 {[%emt 0:00:50]} 39. Re1+ {[%emt 0:00:07]} Kd6 {[%emt 0:00:21]} 40. Ne8+ {[%emt 0:00:07] Gewichteter Fehlerwert: Weiß=0.09 (makellos) /Schwarz=0.68.  Verlustzug:     	---       	Schwarz=1     Fehler:       	Weiß=1     	Schwarz=4     Ungenau:       	Weiß=1     	Schwarz=1     OK:         	Weiß=2     	Schwarz=5     Bester:       	Weiß=1     	---        Stark:        	Weiß=2     	---} 1-0

[Event "Serbian League Women 2024"]
[Site "Bajina Basta"]
[Date "2024.10.02"]
[Round "6.8"]
[White "Dizdarevic, Barbara"]
[Black "Maksimovic, Masa"]
[Result "0-1"]
[ECO "B70"]
[WhiteElo "1966"]
[BlackElo "2093"]
[Annotator "NA RC"]
[PlyCount "112"]
[EventDate "2024.09.26"]
[EventType "team-tourn"]
[EventCountry "SRB"]
[SourceTitle "playchess.com"]
[Source "ChessBase"]
[SourceQuality "1"]
[TimeControl "40/5400+30:1800+30"]

1. e4 {[%emt 0:00:02]} c5 {[%emt 0:00:08]} 2. Nf3 {[%emt 0:00:21]} Nc6 {[%emt 0:00:07]} 3. d4 {[%emt 0:00:15]} cxd4 {[%emt 0:00:06]} 4. Nxd4 {[%emt 0:00:05]} Nf6 {[%emt 0:00:05]} 5. Nc3 {[%emt 0:00:16]} d6 {[%emt 0:00:06]} 6. Bg5 {[%emt 0:00:14]} g6 {[%emt 0:00:52]} 7. Qd2 {[%emt 0:04:44]} Bg7 {[%emt 0:02:39]} 8. Nb3 {[%emt 0:06:15]} h6 {[%emt 0:04:48]} 9. Bh4 {[%emt 0:02:11]} g5 {[%emt 0:00:21]} 10. Bg3 {[%emt 0:00:38]} Nh5 $14 {[%emt 0:00:34]} 11. O-O-O {[%emt 0:03:37]} Bd7 {[%emt 0:10:45]} 12. Be2 {[%emt 0:16:29]} Nxg3 {[%emt 0:00:18]} 13. hxg3 {[%emt 0:00:23]} Rc8 {[%emt 0:01:02]} 14. f4 {[%emt 0:10:55]} g4 {[%emt 0:20:39]} 15. Nd5 {[%emt 0:19:42]} a5 {[%emt 0:10:51]} 16. a4 {[%emt 0:08:34]} O-O {[%emt 0:33:47]} 17. Rh4 {[%emt 0:10:39]} Nb4 {[%emt 0:07:32]} 18. Nxb4 {[%emt 0:03:03]} axb4 {[%emt 0:00:38]} 19. Bxg4 {[%emt 0:05:01]} Ra8 {[%emt 0:02:40]} 20. Bxd7 {[%emt 0:05:15]} Qxd7 {[%emt 0:00:03]} 21. Qxb4 {[%emt 0:01:43]} Rxa4 {[%emt 0:00:11]} 22. Qb6 {[%emt 0:00:35]} Qe6 {[%emt 0:02:35]} 23. f5 {[%emt 0:00:30]} Qe5 {[%emt 0:00:14]} 24. c3 {[%emt 0:00:28]} Qxg3 {[%emt 0:00:25]} 25. Rdh1 {[%emt 0:00:23]} Ra2 {[%emt 0:00:51]} 26. R4h3 {[%emt 0:00:39]} Qe5 {[%emt 0:00:33]} 27. Qe3 {[%emt 0:00:24]} Rc8 {[%emt 0:00:25]} 28. Rg3 {[%emt 0:00:34]} Kf8 {[%emt 0:00:31]} 29. Rd1 {[%emt 0:00:32]} Ra4 {[%emt 0:00:34]} 30. Rg4 {[%emt 0:00:30]} Rac4 {[%emt 0:00:29]} 31. Kb1 {[%emt 0:00:25]} Qb5 {[%emt 0:00:34]} 32. Kc2 {[%emt 0:00:34]} Rxc3+ {[%emt 0:00:11]} 33. bxc3 {[%emt 0:00:07]} Rxc3+ {[%emt 0:00:08]} 34. Qxc3 {[%emt 0:00:13]} Bxc3 {[%emt 0:00:03]} 35. Rd3 {[%emt 0:01:10]} Bf6 {[%emt 0:00:17]} 36. Rgg3 {[%emt 0:00:30]} Qc4+ {[%emt 0:00:20]} 37. Kd2 {[%emt 0:00:32]} Qxe4 {[%emt 0:00:09]} 38. Rgf3 {[%emt 0:00:29]} b5 {[%emt 0:00:40]} 39. Kc2 {[%emt 0:00:30]} b4 {[%emt 0:00:51]} 40. Nd2 {[%emt 0:00:25]} Qc6+ {[%emt 0:00:52]} 41. Kb3 {[%emt 0:09:20]} Qb5 {[%emt 0:03:19]} 42. Ne4 {[%emt 0:04:32]} Be5 {[%emt 0:00:27]} 43. f6 {[%emt 0:02:22]} d5 {[%emt 0:01:21]} 44. fxe7+ {[%emt 0:02:13]} Kxe7 {[%emt 0:00:12]} 45. Nd2 {[%emt 0:01:27]} f6 {[%emt 0:02:28]} 46. Rh3 {[%emt 0:03:28]} Kf7 {[%emt 0:01:00]} 47. Rdf3 {[%emt 0:01:31]} Bc3 {[%emt 0:01:16]} 48. Rd3 {[%emt 0:06:58]} Qa5 {[%emt 0:02:57]} 49. Nb1 {[%emt 0:01:17]} Be5 {[%emt 0:00:11]} 50. Rxh6 {[%emt 0:01:14]} Qa1 {[%emt 0:00:14]} 51. Rh7+ {[%emt 0:01:14]} Ke6 {[%emt 0:00:39]} 52. Rh1 {[%emt 0:00:25]} Qb2+ {[%emt 0:01:15]} 53. Ka4 {[%emt 0:00:02]} Qa2+ {[%emt 0:01:40]} 54. Na3 {[%emt 0:00:56]} bxa3 {[%emt 0:00:08]} 55. Rxa3 {[%emt 0:00:02]} Qc4+ {[%emt 0:00:29]} 56. Ka5 {[%emt 0:00:01]} Bc7# {[%emt 0:00:09]} 0-1

[Event "Serbian League Women 2024"]
[Site "Bajina Basta"]
[Date "2024.10.02"]
[Round "6.9"]
[White "Maltsevskaya, Aleksandra"]
[Black "Aydin, Gulenay"]
[Result "1/2-1/2"]
[ECO "D02"]
[WhiteElo "2404"]
[BlackElo "2202"]
[Annotator "TA"]
[PlyCount "101"]
[EventDate "2024.09.26"]
[EventType "team-tourn"]
[EventCountry "SRB"]
[SourceTitle "playchess.com"]
[Source "ChessBase"]
[SourceQuality "1"]
[TimeControl "40/5400+30:1800+30"]

{[%evp 9,101,0,1,13,0,0,0,0,0,0,0,-22,-25,-22,-30,-21,-31,-11,0,0,0,0,29,-4,-13,-22,31,10,14,0,12,12,36,19,18,0,0,0,0,0,0,-16,-19,-22,0,-17,18,19,19,12,75,78,78,73,75,73,89,0,70,68,65,71,65,68,61,12,89,80,91,15,87,95,127,83,87,96,176,0,0,0,16,12,11,10,10,10,10,0,0,0,0,0,0,0]} 1. d4 {[%emt 0:00:20]} d5 {[%emt 0:00:27]} 2. Nf3 {[%emt 0:00:09]} Nf6 {[%emt 0:00:19]} 3. Bf4 {[%emt 0:00:11]} c5 {[%emt 0:01:05]} 4. e3 {[%emt 0:00:08]} Nc6 {[%emt 0:00:06]} 5. Nbd2 {[%emt 0:00:06]} Qb6 {[%emt 0:00:05][%csl LRb2,LRd4]} 6. dxc5 {[%emt 0:00:07]} Qxb2 {[%emt 0:00:04]} 7. Rb1 {[%emt 0:00:05]} Qc3 {[%emt 0:00:05][%cal Oa7a6]} 8. Bb5 {[%emt 0:00:06]} e6 {[%emt 0:00:04][%cal Of8e7]} 9. O-O {[%emt 0:02:58]} Be7 {[%emt 0:00:09][%cal Oe8g8]} 10. Nb3 {[%emt 0:19:51]} O-O {[%emt 0:08:35]} 11. Qd3 {[%emt 0:14:51]} Ne4 {[%emt 0:12:53]} 12. Bxc6 {[%emt 0:00:27]} bxc6 {[%emt 0:00:18]} 13. Ne5 {[%emt 0:00:07]} Bf6 {[%emt 0:32:48]} 14. f3 {[%emt 0:14:12]} Bxe5 {[%emt 0:05:59]} 15. fxe4 {[%emt 0:00:06]} a5 {[%emt 0:10:14]} 16. Bxe5 {[%emt 0:15:14]} (16. Nd4 {simplifies} Bxd4 17. exd4 Qxd3 18. cxd3 Ba6 19. Rf3) 16... Qxe5 {[%emt 0:00:06]} 17. Qd4 {[%emt 0:00:12]} Qh5 {[%emt 0:06:46]} (17... Qc7 $11) 18. Qc3 {[%emt 0:11:48]} Ba6 {[%emt 0:11:09]} 19. Rfe1 {[%emt 0:00:21]} a4 {[%emt 0:03:26]} 20. Nd4 {[%emt 0:00:07]} Rac8 {[%emt 0:00:51]} (20... dxe4 21. Nxc6 Qg5 22. Rb6 $16) 21. Rb6 {[%emt 0:03:20]} Bb5 {[%emt 0:00:01]} 22. e5 {[%emt 0:11:07]} f6 {[%emt 0:01:36]} 23. Nxb5 {[%emt 0:03:05]} cxb5 {[%emt 0:00:02]} 24. Rxe6 {[%emt 0:00:22]} Qf5 {[%emt 0:00:20]} 25. Re7 {[%emt 0:01:18]} fxe5 {[%emt 0:00:23]} 26. h3 $1 {[%emt 0:00:05] Active counter play!} Qf2+ {[%emt 0:03:01]} 27. Kh2 {[%emt 0:00:06][%cal Oc3e5]} d4 {[%emt 0:02:00]} 28. exd4 {[%emt 0:01:40]} exd4 {[%emt 0:00:01]} 29. Qb4 {[%emt 0:00:18]} Rc6 {[%emt 0:01:29]} (29... d3 $1 $11 {remains equal.} 30. Qxb5 (30. cxd3 Rxc5 31. R1e5 Rxe5 $11) 30... d2 (30... dxc2 31. Qc4+ Kh8 32. R7e3 $14) (30... Qf4+ 31. Kh1 $16) 31. Qc4+ Kh8) 30. Qxb5 $16 {[%emt 0:01:33]} Rg6 {[%emt 0:00:22][%csl Gg6][%cal Rf2g2] [#]} 31. Qc4+ {[%emt 0:00:04]} (31. Qxa4 $2 Qxg2#) 31... Kh8 {[%emt 0:00:05][%csl Gg6][%cal Rf2g2]} 32. Qd5 {[%emt 0:00:06] c6 would now be deadly. Really sharp!} (32. Qxa4 $2 Qxg2#) 32... h6 {[%emt 0:01:04][%cal Oh8h7]} 33. Re8 {[%emt 0:00:26]} (33. Qe4 $16 Qg3+ 34. Kh1) 33... Qg3+ {[%emt 0:00:29]} ({Black should try} 33... Kh7 $1 $11) 34. Kh1 $14 {[%emt 0:00:07]} Kh7 $1 {[%emt 0:00:13][%cal Og3c3]} 35. c6 {[%emt 0:02:57] Threatens to win with c7.} Qf2 {[%emt 0:00:33]} 36. R8e2 $1 {[%emt 0:00:30]} ({Much worse is} 36. c7 Rxe8 37. Rxe8 Qf1+ 38. Kh2 Qf4+ 39. Kg1 Qc1+ 40. Kh2 Qf4+ 41. Kg1 Qc1+ 42. Kh2 Qf4+ $11) 36... Qf4 {[%emt 0:00:47]} 37. Re6 {[%emt 0:00:00]} (37. Rd1 $14 {should be considered.}) 37... Rxe6 {[%emt 0:00:33]} (37... Rf5 $1 $11 38. Qe4 Qxe4 39. R6xe4 (39. R1xe4 Rxe6 40. Rxe6 a3 $11) 39... Rf2) 38. Qxe6 $11 {[%emt 0:00:00][%mdl 4096] Endgame. KQR-KQR} (38. Rxe6 Rf5 39. Qe4 Qxe4 40. Rxe4 Rf6 $14) 38... Rf6 {[%emt 0:00:15]} 39. Qc4 {[%emt 0:00:00]} (39. Qd5 $16) 39... Qg3 {[%emt 0:00:41]} (39... Qd2 $1 $11 {keeps the balance.} 40. Re4 Rg6) 40. Re8 $16 {[%emt 0:01:24][%cal Oc6c7] c7! is the strong threat.} d3 {[%emt 0:00:24][%cal Rf6f1]} 41. Qe4+ {[%emt 0:04:32]} (41. Qxa4 $2 Rf1#) 41... Qg6 {[%emt 0:01:02]} 42. cxd3 {[%emt 0:00:53]} Rxc6 {[%emt 0:00:33] [#]} 43. Qe2 $2 {[%emt 0:16:04]} (43. Qxg6+ $1 $18 Kxg6 44. Ra8) 43... Qg3 {[%emt 0:12:17] ( -> ...Rc1+). The position is equal.} 44. Rf8 {[%emt 0:01:36]} Qg6 {[%emt 0:05:03]} 45. Rf3 {[%emt 0:05:16]} (45. Qf3 {with more complications.} Rc1+ 46. Kh2 Rc2 47. Rd8) 45... Rc1+ {[%emt 0:04:15]} 46. Rf1 {[%emt 0:00:05]} Rc3 {[%emt 0:00:09]} 47. Rd1 {[%emt 0:00:25]} Qc6 {[%emt 0:00:22]} 48. Qg4 {[%emt 0:02:33]} Rc2 {[%emt 0:03:16]} 49. d4 {[%emt 0:00:05]} Qd5 {[%emt 0:00:43]} 50. Rd3 {[%emt 0:02:26]} h5 {[%emt 0:03:59]} 51. Qf3 {[%emt 0:01:35] Weighted Error Value: White=0.15 (very precise) /Black=0.15 (very precise) .  Missed win:     	White=1     	---        Mistake:       	White=3     	Black=5      Inaccurate:     	White=2     	Black=3      OK:         	White=20    	Black=17     Best:        	White=3     	Black=6      Strong:       	White=2     	Black=1} 1/2-1/2

[Event "Serbian League Women 2024"]
[Site "Bajina Basta"]
[Date "2024.10.02"]
[Round "6.10"]
[White "Yildiz, Elif Zeren"]
[Black "Drljevic, Ljilja"]
[Result "0-1"]
[ECO "B07"]
[WhiteElo "1934"]
[BlackElo "2102"]
[Annotator "NA RC"]
[PlyCount "86"]
[EventDate "2024.09.26"]
[EventType "team-tourn"]
[EventCountry "SRB"]
[SourceTitle "playchess.com"]
[Source "ChessBase"]
[SourceQuality "1"]
[TimeControl "40/5400+30:1800+30"]

1. e4 {[%emt 0:00:02]} d6 {[%emt 0:00:02]} 2. d4 {[%emt 0:00:07]} Nf6 {[%emt 0:00:06]} 3. Nc3 {[%emt 0:00:06]} e6 {[%emt 0:00:25]} 4. Be3 {[%emt 0:01:54]} a6 {[%emt 0:02:17]} 5. a4 {[%emt 0:02:55]} b6 {[%emt 0:01:03]} 6. f3 {[%emt 0:01:18]} Bb7 {[%emt 0:00:10]} 7. Nge2 {[%emt 0:05:02]} Nbd7 $11 {[%emt 0:03:01]} 8. g4 {[%emt 0:05:40]} h6 {[%emt 0:06:02]} 9. Nf4 {[%emt 0:03:53]} g5 {[%emt 0:03:56]} 10. Nfe2 {[%emt 0:07:49]} c5 {[%emt 0:00:18]} 11. Ng3 {[%emt 0:06:21]} Qc7 {[%emt 0:22:27]} 12. Qe2 {[%emt 0:10:41]} Be7 {[%emt 0:13:34]} 13. Rd1 {[%emt 0:08:02]} Nf8 {[%emt 0:05:44]} 14. Nh5 {[%emt 0:13:37]} O-O-O {[%emt 0:07:44]} 15. Qf2 {[%emt 0:06:28]} Ng6 {[%emt 0:03:57]} 16. Be2 {[%emt 0:02:57]} Nxh5 {[%emt 0:02:19]} 17. gxh5 {[%emt 0:00:02]} Nf4 {[%emt 0:00:14]} 18. Bxf4 {[%emt 0:04:18]} gxf4 {[%emt 0:00:11]} 19. d5 {[%emt 0:00:18]} Bf6 {[%emt 0:08:22]} 20. Bc4 {[%emt 0:01:00]} Qe7 {[%emt 0:09:12]} 21. Qe2 {[%emt 0:04:17]} Bd4 {[%emt 0:02:07]} 22. h4 {[%emt 0:03:30]} Rhg8 {[%emt 0:00:58]} 23. Bxa6 {[%emt 0:02:34]} Rg1+ {[%emt 0:01:41]} 24. Rxg1 {[%emt 0:00:01]} Qxh4+ {[%emt 0:00:08]} 25. Kf1 {[%emt 0:00:57]} Bxg1 {[%emt 0:01:57]} 26. Qg2 {[%emt 0:03:34]} Be3 {[%emt 0:01:38]} 27. Bxb7+ {[%emt 0:00:13]} Kxb7 {[%emt 0:00:02]} 28. Ke2 {[%emt 0:01:53]} c4 {[%emt 0:01:38]} 29. Rh1 {[%emt 0:01:10]} Rg8 {[%emt 0:00:59]} 30. Qh2 {[%emt 0:00:11]} Qg5 {[%emt 0:00:54]} 31. Kd1 {[%emt 0:03:08]} Qe5 {[%emt 0:01:50]} 32. Qe2 {[%emt 0:00:49]} exd5 {[%emt 0:00:50]} 33. exd5 {[%emt 0:00:12]} Qd4+ {[%emt 0:00:29]} 34. Ke1 {[%emt 0:00:01]} Re8 {[%emt 0:00:32]} 35. Kf1 {[%emt 0:01:22]} Re5 {[%emt 0:00:30]} 36. Kg2 {[%emt 0:01:33]} Rg5+ {[%emt 0:00:36]} 37. Kf1 {[%emt 0:00:01]} Qg7 {[%emt 0:00:23]} 38. Qxc4 {[%emt 0:00:48]} Rg1+ {[%emt 0:00:29]} 39. Rxg1 {[%emt 0:00:01]} Qxg1+ {[%emt 0:00:06]} 40. Ke2 {[%emt 0:00:05]} Qf2+ {[%emt 0:00:58]} 41. Kd3 {[%emt 0:30:02]} Qd2+ {[%emt 0:02:00]} 42. Ke4 {[%emt 0:00:00]} Qxc2+ {[%emt 0:00:04]} 43. Qd3 {[%emt 0:00:00]} f5+ {[%emt 0:00:04]} 0-1

[Event "Serbian League Women 2024"]
[Site "Bajina Basta"]
[Date "2024.10.02"]
[Round "6.11"]
[White "Radenkovic, Mila"]
[Black "Vujcic, Milena"]
[Result "1/2-1/2"]
[ECO "C47"]
[WhiteElo "1910"]
[BlackElo "2076"]
[Annotator "NA RC"]
[PlyCount "83"]
[EventDate "2024.09.26"]
[EventType "team-tourn"]
[EventCountry "SRB"]
[SourceTitle "playchess.com"]
[Source "ChessBase"]
[SourceQuality "1"]
[TimeControl "40/5400+30:1800+30"]

1. e4 {[%emt 0:00:06]} e5 {[%emt 0:00:05]} 2. Nf3 {[%emt 0:00:11]} Nc6 {[%emt 0:00:07]} 3. Nc3 {[%emt 0:00:06]} Nf6 {[%emt 0:00:09]} 4. d4 {[%emt 0:00:04]} exd4 {[%emt 0:00:07]} 5. Nxd4 {[%emt 0:00:03]} Bb4 {[%emt 0:00:08]} 6. Nxc6 {[%emt 0:00:04]} bxc6 {[%emt 0:00:10]} 7. Bd3 {[%emt 0:00:05]} d5 {[%emt 0:00:09]} 8. exd5 {[%emt 0:00:07]} O-O {[%emt 0:00:08]} 9. O-O {[%emt 0:00:04]} cxd5 {[%emt 0:00:06]} 10. h3 {[%emt 0:02:28]} c6 {[%emt 0:00:07]} 11. Qf3 {[%emt 0:00:44]} Re8 {[%emt 0:00:24]} 12. Bf4 {[%emt 0:02:31]} Nd7 {[%emt 0:00:31]} 13. Rfe1 {[%emt 0:19:26]} Nc5 $11 {[%emt 0:01:25]} 14. Rxe8+ {[%emt 0:10:07]} Qxe8 {[%emt 0:00:19]} 15. a3 {[%emt 0:00:34]} Nxd3 {[%emt 0:02:04]} 16. Qxd3 {[%emt 0:00:04]} Bf8 {[%emt 0:01:15]} 17. b4 {[%emt 0:02:09]} Be6 {[%emt 0:04:38]} 18. Re1 {[%emt 0:04:00]} Qd7 {[%emt 0:02:49]} 19. Ne2 {[%emt 0:09:57]} a5 {[%emt 0:04:10]} 20. Rb1 {[%emt 0:03:15]} axb4 {[%emt 0:03:33]} 21. axb4 {[%emt 0:00:09]} Bf5 {[%emt 0:16:14]} 22. Qc3 {[%emt 0:04:07]} Rc8 {[%emt 0:01:13]} 23. Be3 {[%emt 0:02:47]} Bd6 {[%emt 0:05:13]} 24. Bc5 {[%emt 0:02:32]} Bb8 {[%emt 0:01:05]} 25. Re1 {[%emt 0:02:20]} Re8 {[%emt 0:03:27]} 26. Nd4 {[%emt 0:02:53]} Rxe1+ {[%emt 0:05:32]} 27. Qxe1 {[%emt 0:00:04]} Be6 {[%emt 0:00:48]} 28. Qe2 {[%emt 0:04:06]} Qc7 {[%emt 0:03:40]} 29. g3 {[%emt 0:01:05]} Qc8 {[%emt 0:00:04]} 30. h4 {[%emt 0:03:17]} h6 {[%emt 0:01:10]} 31. c3 {[%emt 0:04:58]} Bd7 {[%emt 0:04:43]} 32. Kg2 {[%emt 0:09:29]} Qe8 {[%emt 0:02:57]} 33. Qxe8+ {[%emt 0:00:17]} Bxe8 {[%emt 0:00:04]} 34. Kf3 {[%emt 0:00:12]} Bd7 {[%emt 0:00:44]} 35. Ke3 {[%emt 0:00:15]} g6 {[%emt 0:01:35]} 36. Ne2 {[%emt 0:01:59]} f6 {[%emt 0:02:01]} 37. f4 {[%emt 0:02:37]} Kf7 {[%emt 0:00:14]} 38. Nd4 {[%emt 0:00:31]} h5 {[%emt 0:00:42]} 39. Kf3 {[%emt 0:00:57]} Bc7 {[%emt 0:00:43]} 40. Nb3 {[%emt 0:06:26]} Bd8 {[%emt 0:03:53]} 41. Be3 {[%emt 0:31:28]} Bg4+ {[%emt 0:32:34]} 42. Kf2 {[%emt 0:00:10]} 1/2-1/2